[Event "Titled Tuesday Blitz January 18 2022"]
[White "Gubajdullin, Alexei"]
[Black "Pultinevicius, Paulius"]
[WhiteFideId "4141202"]
[BlackFideId "12809390"]
[WhiteElo "2268"]
[BlackElo "2413"]
[Result "0-1"]
[Round "06"]
[TimeControl "180+1"]
[Date "2022.01.18"]
[WhiteClock "0:00:08"]
[BlackClock "0:01:00"]

1. d4 {[%clk 0:03:00]}  Nf6 {[%clk 0:02:59]} 2. Nf3 {[%clk 0:03:00]}  e6 {[%clk 0:02:51]} 3. Bf4 {[%clk 0:02:59]}  d5 {[%clk 0:02:51]} 4. e3 {[%clk 0:02:59]}  Bd6 {[%clk 0:02:51]} 5. Ne5 {[%clk 0:02:58]}  O-O {[%clk 0:02:49]} 6. Nd2 {[%clk 0:02:58]}  c5 {[%clk 0:02:50]} 7. c3 {[%clk 0:02:58]}  Qc7 {[%clk 0:02:50]} 8. h4 {[%clk 0:02:51]}  Nc6 {[%clk 0:02:48]} 9. Ndf3 {[%clk 0:02:50]}  Nd7 {[%clk 0:02:48]} 10. Nxd7 {[%clk 0:02:43]}  Bxd7 {[%clk 0:02:47]} 11. Bxd6 {[%clk 0:02:40]}  Qxd6 {[%clk 0:02:48]} 12. Bb5 {[%clk 0:02:25]}  cxd4 {[%clk 0:02:31]} 13. exd4 {[%clk 0:02:22]}  a6 {[%clk 0:02:31]} 14. Bxc6 {[%clk 0:02:11]}  bxc6 {[%clk 0:02:30]} 15. O-O {[%clk 0:02:09]}  c5 {[%clk 0:02:28]} 16. h5 {[%clk 0:02:05]}  h6 {[%clk 0:02:27]} 17. dxc5 {[%clk 0:01:59]}  Qxc5 {[%clk 0:02:27]} 18. Ne5 {[%clk 0:01:59]}  Qc7 {[%clk 0:02:27]} 19. Re1 {[%clk 0:01:56]}  Rab8 {[%clk 0:02:27]} 20. b3 {[%clk 0:01:52]}  Rfc8 {[%clk 0:02:23]} 21. Re3 {[%clk 0:01:45]}  Be8 {[%clk 0:02:22]} 22. Qg4 {[%clk 0:01:44]}  Qe7 {[%clk 0:02:15]} 23. Rae1 {[%clk 0:01:31]}  Rc7 {[%clk 0:02:05]} 24. Rg3 {[%clk 0:01:17]}  Qf6 {[%clk 0:01:54]} 25. f4 {[%clk 0:01:07]}  Rbc8 {[%clk 0:01:52]} 26. Ree3 {[%clk 0:01:07]}  a5 {[%clk 0:01:44]} 27. Qf3 {[%clk 0:00:50]}  Qf5 {[%clk 0:01:43]} 28. Ng4 {[%clk 0:00:42]}  Kh8 {[%clk 0:01:37]} 29. Nf2 {[%clk 0:00:29]}  f6 {[%clk 0:01:31]} 30. Rh3 {[%clk 0:00:27]}  Bc6 {[%clk 0:01:04]} 31. g4 {[%clk 0:00:22]}  Qb1+ {[%clk 0:01:03]} 32. Kh2 {[%clk 0:00:22]}  d4 {[%clk 0:01:03]} 33. Re4 {[%clk 0:00:14]}  Bxe4 {[%clk 0:00:59]} 34. Nxe4 {[%clk 0:00:13]}  dxc3 {[%clk 0:01:00]} 35. g5 {[%clk 0:00:11]}  c2 {[%clk 0:01:00]} 36. gxh6 {[%clk 0:00:09]}  c1=Q {[%clk 0:00:59]} 37. hxg7+ {[%clk 0:00:09]}  Rxg7 {[%clk 0:01:00]} 38. Ng3 {[%clk 0:00:08]}  Qg1# {[%clk 0:01:00]} 0-1


[Site "https://www.chess.com"]

[Event "Titled Tuesday Blitz January 18 2022"]
[White "Halkias, Stelios"]
[Black "Villalba, Marcelo"]
[WhiteFideId "4201809"]
[BlackFideId "3701859"]
[WhiteElo "2453"]
[BlackElo "2169"]
[Result "0-1"]
[Round "06"]
[TimeControl "180+1"]
[Date "2022.01.18"]
[WhiteClock "0:00:12"]
[BlackClock "0:00:11"]

1. e4 {[%clk 0:03:00]}  e5 {[%clk 0:02:57]} 2. Nf3 {[%clk 0:03:00]}  Nc6 {[%clk 0:02:57]} 3. Bb5 {[%clk 0:03:00]}  a6 {[%clk 0:02:57]} 4. Ba4 {[%clk 0:03:00]}  Nf6 {[%clk 0:02:57]} 5. O-O {[%clk 0:03:00]}  Be7 {[%clk 0:02:56]} 6. Re1 {[%clk 0:02:59]}  b5 {[%clk 0:02:56]} 7. Bb3 {[%clk 0:03:00]}  d6 {[%clk 0:02:57]} 8. c3 {[%clk 0:02:59]}  O-O {[%clk 0:02:56]} 9. d4 {[%clk 0:02:59]}  Bg4 {[%clk 0:02:45]} 10. Be3 {[%clk 0:02:59]}  exd4 {[%clk 0:02:42]} 11. cxd4 {[%clk 0:02:59]}  Na5 {[%clk 0:02:42]} 12. Bc2 {[%clk 0:02:59]}  Nc4 {[%clk 0:02:42]} 13. Bc1 {[%clk 0:02:59]}  c5 {[%clk 0:02:41]} 14. b3 {[%clk 0:02:59]}  Nb6 {[%clk 0:02:40]} 15. Nbd2 {[%clk 0:02:57]}  cxd4 {[%clk 0:02:33]} 16. Bb2 {[%clk 0:02:54]}  Rc8 {[%clk 0:02:29]} 17. h3 {[%clk 0:02:46]}  Bh5 {[%clk 0:02:27]} 18. Bxd4 {[%clk 0:02:39]}  Nbd7 {[%clk 0:02:17]} 19. Qb1 {[%clk 0:02:33]}  Re8 {[%clk 0:02:07]} 20. Nh4 {[%clk 0:02:18]}  Bf8 {[%clk 0:01:49]} 21. Nf5 {[%clk 0:02:14]}  Bg6 {[%clk 0:01:42]} 22. Qb2 {[%clk 0:02:08]}  Nh5 {[%clk 0:01:16]} 23. Nf1 {[%clk 0:02:00]}  Ne5 {[%clk 0:01:13]} 24. Rad1 {[%clk 0:01:48]}  Qc7 {[%clk 0:01:06]} 25. Bb1 {[%clk 0:01:44]}  Nf4 {[%clk 0:01:00]} 26. N1e3 {[%clk 0:01:40]}  Bh5 {[%clk 0:00:50]} 27. Rd2 {[%clk 0:01:17]}  Qd8 {[%clk 0:00:48]} 28. Bxe5 {[%clk 0:00:54]}  Rxe5 {[%clk 0:00:48]} 29. h4 {[%clk 0:00:44]}  g6 {[%clk 0:00:39]} 30. g3 {[%clk 0:00:29]}  gxf5 {[%clk 0:00:23]} 31. gxf4 {[%clk 0:00:29]}  Bf3 {[%clk 0:00:13]} 32. Qxe5 {[%clk 0:00:12]}  Qxh4 {[%clk 0:00:12]} 33. Ng2 {[%clk 0:00:12]}  Qg4 {[%clk 0:00:11]} 0-1


[Site "https://www.chess.com"]

[Event "Titled Tuesday Blitz January 18 2022"]
[White "Kalashian, David"]
[Black "Howell, David W L"]
[WhiteFideId "13302418"]
[BlackFideId "410608"]
[WhiteElo "2743"]
[BlackElo "3009"]
[Result "0-1"]
[Round "06"]
[TimeControl "180+1"]
[Date "2022.01.18"]
[WhiteClock "0:00:03"]
[BlackClock "0:00:08"]

1. d4 {[%clk 0:03:00]}  f5 {[%clk 0:02:53]} 2. Bg5 {[%clk 0:02:58]}  g6 {[%clk 0:02:46]} 3. Nc3 {[%clk 0:02:57]}  Bg7 {[%clk 0:02:46]} 4. e4 {[%clk 0:02:56]}  fxe4 {[%clk 0:02:46]} 5. Nxe4 {[%clk 0:02:57]}  d5 {[%clk 0:02:47]} 6. Nc3 {[%clk 0:02:56]}  Nh6 {[%clk 0:02:19]} 7. Qd2 {[%clk 0:02:47]}  Nf7 {[%clk 0:02:18]} 8. Be3 {[%clk 0:02:37]}  c5 {[%clk 0:02:17]} 9. Nf3 {[%clk 0:02:07]}  Nc6 {[%clk 0:02:13]} 10. Bb5 {[%clk 0:02:05]}  O-O {[%clk 0:02:12]} 11. Bxc6 {[%clk 0:02:03]}  bxc6 {[%clk 0:02:13]} 12. Ne2 {[%clk 0:01:28]}  cxd4 {[%clk 0:02:07]} 13. Nexd4 {[%clk 0:01:25]}  Bd7 {[%clk 0:02:06]} 14. Nb3 {[%clk 0:01:22]}  Bxb2 {[%clk 0:01:53]} 15. Rb1 {[%clk 0:01:22]}  Bg7 {[%clk 0:01:51]} 16. O-O {[%clk 0:01:21]}  e5 {[%clk 0:01:49]} 17. Bc5 {[%clk 0:01:21]}  Re8 {[%clk 0:01:48]} 18. c3 {[%clk 0:01:22]}  a5 {[%clk 0:01:42]} 19. Ba3 {[%clk 0:01:19]}  Bf5 {[%clk 0:01:41]} 20. Rb2 {[%clk 0:01:14]}  Qc7 {[%clk 0:01:37]} 21. Nc5 {[%clk 0:01:13]}  Nd6 {[%clk 0:01:36]} 22. Qe2 {[%clk 0:00:56]}  Qc8 {[%clk 0:01:16]} 23. Na4 {[%clk 0:00:48]}  Nc4 {[%clk 0:01:04]} 24. Nb6 {[%clk 0:00:46]}  Nxb6 {[%clk 0:01:04]} 25. Rxb6 {[%clk 0:00:47]}  Rb8 {[%clk 0:01:05]} 26. Rxb8 {[%clk 0:00:39]}  Qxb8 {[%clk 0:01:06]} 27. Nh4 {[%clk 0:00:39]}  Bd7 {[%clk 0:01:03]} 28. Nf3 {[%clk 0:00:37]}  Qb5 {[%clk 0:00:59]} 29. Qd2 {[%clk 0:00:37]}  Bg4 {[%clk 0:00:56]} 30. Ng5 {[%clk 0:00:17]}  h6 {[%clk 0:00:53]} 31. h3 {[%clk 0:00:18]}  Qe2 {[%clk 0:00:36]} 32. Qc1 {[%clk 0:00:13]}  Bh5 {[%clk 0:00:27]} 33. Re1 {[%clk 0:00:13]}  Qxa2 {[%clk 0:00:27]} 34. g4 {[%clk 0:00:14]}  Bxg4 {[%clk 0:00:22]} 35. hxg4 {[%clk 0:00:15]}  hxg5 {[%clk 0:00:22]} 36. Bc5 {[%clk 0:00:15]}  Qc4 {[%clk 0:00:22]} 37. Be3 {[%clk 0:00:13]}  Qxg4+ {[%clk 0:00:22]} 38. Kf1 {[%clk 0:00:14]}  Qh3+ {[%clk 0:00:21]} 39. Ke2 {[%clk 0:00:14]}  Qg4+ {[%clk 0:00:22]} 40. Kf1 {[%clk 0:00:13]}  Bf6 {[%clk 0:00:21]} 41. Qb1 {[%clk 0:00:11]}  Qf5 {[%clk 0:00:17]} 42. Qb7 {[%clk 0:00:11]}  Qc8 {[%clk 0:00:13]} 43. Qb1 {[%clk 0:00:10]}  Kg7 {[%clk 0:00:12]} 44. Rd1 {[%clk 0:00:09]}  Rh8 {[%clk 0:00:12]} 45. Ke2 {[%clk 0:00:08]}  Qa6+ {[%clk 0:00:11]} 46. Kd2 {[%clk 0:00:06]}  d4 {[%clk 0:00:11]} 47. Kc2 {[%clk 0:00:05]}  Qb5 {[%clk 0:00:08]} 48. Qa2 {[%clk 0:00:03]}  Qd5 {[%clk 0:00:06]} 49. Qb2 {[%clk 0:00:03]}  Rd8 {[%clk 0:00:06]} 50. cxd4 {[%clk 0:00:01]}  exd4 {[%clk 0:00:07]} 51. Bd2 {[%clk 0:00:02]}  d3+ {[%clk 0:00:07]} 52. Kb1 {[%clk 0:00:03]}  Bxb2 {[%clk 0:00:08]} 0-1


[Site "https://www.chess.com"]

[Event "Titled Tuesday Blitz January 18 2022"]
[White "Karas, Marek"]
[Black "Djordjevic, Vuk"]
[WhiteFideId "14928558"]
[BlackFideId "902098"]
[WhiteElo "2270"]
[BlackElo "2463"]
[Result "1-0"]
[Round "06"]
[TimeControl "180+1"]
[Date "2022.01.18"]
[WhiteClock "0:00:12"]
[BlackClock "0:00:03"]

1. d4 {[%clk 0:03:00]}  Nf6 {[%clk 0:02:59]} 2. Nf3 {[%clk 0:03:00]}  e6 {[%clk 0:03:00]} 3. Bf4 {[%clk 0:02:59]}  d5 {[%clk 0:02:59]} 4. e3 {[%clk 0:02:59]}  Bd6 {[%clk 0:02:59]} 5. Bg3 {[%clk 0:02:59]}  O-O {[%clk 0:03:00]} 6. Bd3 {[%clk 0:02:59]}  c5 {[%clk 0:03:00]} 7. c3 {[%clk 0:02:59]}  Qc7 {[%clk 0:03:01]} 8. dxc5 {[%clk 0:02:59]}  Qxc5 {[%clk 0:03:00]} 9. Nbd2 {[%clk 0:02:58]}  Nbd7 {[%clk 0:02:56]} 10. e4 {[%clk 0:02:53]}  dxe4 {[%clk 0:02:46]} 11. Nxe4 {[%clk 0:02:54]}  Nxe4 {[%clk 0:02:42]} 12. Bxe4 {[%clk 0:02:54]}  Bxg3 {[%clk 0:02:37]} 13. hxg3 {[%clk 0:02:55]}  Nf6 {[%clk 0:02:31]} 14. Qc2 {[%clk 0:02:54]}  h6 {[%clk 0:02:27]} 15. Rd1 {[%clk 0:02:40]}  e5 {[%clk 0:02:13]} 16. O-O {[%clk 0:02:23]}  Rb8 {[%clk 0:02:11]} 17. Rfe1 {[%clk 0:02:16]}  b5 {[%clk 0:02:11]} 18. Bd3 {[%clk 0:02:05]}  Re8 {[%clk 0:02:07]} 19. Nd2 {[%clk 0:01:59]}  Bg4 {[%clk 0:02:01]} 20. Rc1 {[%clk 0:01:50]}  b4 {[%clk 0:01:50]} 21. cxb4 {[%clk 0:01:39]}  Qxb4 {[%clk 0:01:49]} 22. b3 {[%clk 0:01:15]}  Rec8 {[%clk 0:01:45]} 23. Bc4 {[%clk 0:01:11]}  Qa5 {[%clk 0:01:09]} 24. Ne4 {[%clk 0:01:06]}  Qb6 {[%clk 0:00:59]} 25. Nxf6+ {[%clk 0:01:02]}  Qxf6 {[%clk 0:01:00]} 26. Qe4 {[%clk 0:01:00]}  Be6 {[%clk 0:00:51]} 27. Qxe5 {[%clk 0:00:55]}  Qxe5 {[%clk 0:00:50]} 28. Rxe5 {[%clk 0:00:56]}  Rb4 {[%clk 0:00:42]} 29. Ra5 {[%clk 0:00:46]}  Rc7 {[%clk 0:00:35]} 30. Ra6 {[%clk 0:00:34]}  Kf8 {[%clk 0:00:29]} 31. f3 {[%clk 0:00:26]}  Rb8 {[%clk 0:00:13]} 32. Rc2 {[%clk 0:00:23]}  Rd8 {[%clk 0:00:06]} 33. Kh2 {[%clk 0:00:21]}  Rc5 {[%clk 0:00:05]} 34. g4 {[%clk 0:00:21]}  Rc7 {[%clk 0:00:02]} 35. Ra5 {[%clk 0:00:19]}  Bc8 {[%clk 0:00:02]} 36. Kg3 {[%clk 0:00:18]}  Rd6 {[%clk 0:00:02]} 37. Re5 {[%clk 0:00:18]}  Be6 {[%clk 0:00:02]} 38. Rce2 {[%clk 0:00:17]}  g6 {[%clk 0:00:01]} 39. Bxe6 {[%clk 0:00:16]}  fxe6 {[%clk 0:00:02]} 40. Rxe6 {[%clk 0:00:17]}  Rxe6 {[%clk 0:00:03]} 41. Rxe6 {[%clk 0:00:17]}  Kf7 {[%clk 0:00:04]} 42. Ra6 {[%clk 0:00:18]}  Kg7 {[%clk 0:00:05]} 43. b4 {[%clk 0:00:18]}  Rb7 {[%clk 0:00:05]} 44. a3 {[%clk 0:00:17]}  Kf7 {[%clk 0:00:05]} 45. Kf4 {[%clk 0:00:17]}  Kg7 {[%clk 0:00:05]} 46. Ke5 {[%clk 0:00:17]}  Re7+ {[%clk 0:00:05]} 47. Kd4 {[%clk 0:00:16]}  Rc7 {[%clk 0:00:04]} 48. b5 {[%clk 0:00:14]}  Kf7 {[%clk 0:00:04]} 49. a4 {[%clk 0:00:14]}  Kg7 {[%clk 0:00:02]} 50. Rc6 {[%clk 0:00:12]}  Rd7+ {[%clk 0:00:02]} 51. Kc5 {[%clk 0:00:13]}  Kf7 {[%clk 0:00:02]} 52. a5 {[%clk 0:00:12]}  Re7 {[%clk 0:00:02]} 53. b6 {[%clk 0:00:12]}  axb6+ {[%clk 0:00:02]} 54. axb6 {[%clk 0:00:12]}  Re2 {[%clk 0:00:03]} 55. b7 {[%clk 0:00:12]} 1-0


[Site "https://www.chess.com"]

[Event "Titled Tuesday Blitz January 18 2022"]
[White "Karttunen, Mika"]
[Black "Shipov, Sergei"]
[WhiteFideId "502081"]
[BlackFideId "4113624"]
[WhiteElo "2343"]
[BlackElo "2781"]
[Result "0-1"]
[Round "06"]
[TimeControl "180+1"]
[Date "2022.01.18"]
[WhiteClock "0:00:21"]
[BlackClock "0:01:19"]

1. d4 {[%clk 0:03:00]}  d5 {[%clk 0:02:58]} 2. c4 {[%clk 0:02:59]}  dxc4 {[%clk 0:02:58]} 3. e3 {[%clk 0:02:57]}  e6 {[%clk 0:02:56]} 4. Bxc4 {[%clk 0:02:49]}  c5 {[%clk 0:02:57]} 5. Nf3 {[%clk 0:02:49]}  a6 {[%clk 0:02:57]} 6. O-O {[%clk 0:02:48]}  Nf6 {[%clk 0:02:57]} 7. Qe2 {[%clk 0:02:47]}  b5 {[%clk 0:02:53]} 8. Bb3 {[%clk 0:02:47]}  Bb7 {[%clk 0:02:52]} 9. Rd1 {[%clk 0:02:46]}  Nbd7 {[%clk 0:02:51]} 10. a4 {[%clk 0:02:34]}  c4 {[%clk 0:02:50]} 11. Bc2 {[%clk 0:02:34]}  Be7 {[%clk 0:02:45]} 12. e4 {[%clk 0:02:31]}  O-O {[%clk 0:02:44]} 13. Nbd2 {[%clk 0:02:07]}  Rc8 {[%clk 0:02:28]} 14. axb5 {[%clk 0:01:56]}  axb5 {[%clk 0:02:27]} 15. Nf1 {[%clk 0:01:56]}  b4 {[%clk 0:02:19]} 16. Ng3 {[%clk 0:01:50]}  Qb6 {[%clk 0:02:04]} 17. e5 {[%clk 0:01:27]}  Nd5 {[%clk 0:02:04]} 18. Qe4 {[%clk 0:01:22]}  g6 {[%clk 0:02:04]} 19. Qg4 {[%clk 0:01:18]}  b3 {[%clk 0:02:03]} 20. Bb1 {[%clk 0:01:15]}  c3 {[%clk 0:02:04]} 21. Bd3 {[%clk 0:00:57]}  c2 {[%clk 0:01:49]} 22. Re1 {[%clk 0:00:55]}  Nb4 {[%clk 0:01:48]} 23. Bf1 {[%clk 0:00:54]}  Ra8 {[%clk 0:01:47]} 24. Rxa8 {[%clk 0:00:53]}  Rxa8 {[%clk 0:01:47]} 25. h4 {[%clk 0:00:48]}  Ra1 {[%clk 0:01:46]} 26. h5 {[%clk 0:00:49]}  Na2 {[%clk 0:01:45]} 27. hxg6 {[%clk 0:00:42]}  hxg6 {[%clk 0:01:44]} 28. Qf4 {[%clk 0:00:36]}  Bxf3 {[%clk 0:01:39]} 29. gxf3 {[%clk 0:00:36]}  Rxc1 {[%clk 0:01:38]} 30. Rxc1 {[%clk 0:00:36]}  Nxc1 {[%clk 0:01:39]} 31. Qxc1 {[%clk 0:00:36]}  Qxd4 {[%clk 0:01:39]} 32. f4 {[%clk 0:00:36]}  Nc5 {[%clk 0:01:37]} 33. Ne2 {[%clk 0:00:35]}  Qd1 {[%clk 0:01:36]} 34. Qe3 {[%clk 0:00:34]}  Nd3 {[%clk 0:01:35]} 35. Qa7 {[%clk 0:00:31]}  Bc5 {[%clk 0:01:34]} 36. Qb8+ {[%clk 0:00:30]}  Kg7 {[%clk 0:01:34]} 37. Qxb3 {[%clk 0:00:29]}  Bxf2+ {[%clk 0:01:19]} 38. Kg2 {[%clk 0:00:26]}  c1=Q {[%clk 0:01:19]} 39. Nxc1 {[%clk 0:00:26]}  Qg4+ {[%clk 0:01:19]} 40. Kh2 {[%clk 0:00:20]}  Qg3+ {[%clk 0:01:18]} 41. Kh1 {[%clk 0:00:21]}  Qg1# {[%clk 0:01:19]} 0-1


[Site "https://www.chess.com"]

[Event "Titled Tuesday Blitz January 18 2022"]
[White "Kavyev, Ruslan"]
[Black "Jakubowski, Krzysztof"]
[WhiteFideId "34110981"]
[BlackFideId "1112848"]
[WhiteElo "2182"]
[BlackElo "2365"]
[Result "1-0"]
[Round "06"]
[TimeControl "180+1"]
[Date "2022.01.18"]
[WhiteClock "0:00:24"]
[BlackClock "0:00:01"]

1. d4 {[%clk 0:02:50]}  Nf6 {[%clk 0:02:59]} 2. c4 {[%clk 0:02:48]}  e6 {[%clk 0:02:58]} 3. g3 {[%clk 0:02:48]}  d5 {[%clk 0:02:57]} 4. Nf3 {[%clk 0:02:48]}  Bb4+ {[%clk 0:02:55]} 5. Nbd2 {[%clk 0:02:48]}  O-O {[%clk 0:02:53]} 6. Bg2 {[%clk 0:02:48]}  dxc4 {[%clk 0:02:52]} 7. Qc2 {[%clk 0:02:41]}  a5 {[%clk 0:02:47]} 8. a3 {[%clk 0:02:37]}  Bxd2+ {[%clk 0:02:38]} 9. Bxd2 {[%clk 0:02:35]}  b5 {[%clk 0:02:37]} 10. a4 {[%clk 0:02:36]}  bxa4 {[%clk 0:02:30]} 11. O-O {[%clk 0:02:30]}  Nd5 {[%clk 0:02:23]} 12. Rxa4 {[%clk 0:02:17]}  Nc6 {[%clk 0:02:17]} 13. Rxc4 {[%clk 0:01:44]}  Ncb4 {[%clk 0:02:14]} 14. Qd1 {[%clk 0:01:34]}  f6 {[%clk 0:01:33]} 15. Rc5 {[%clk 0:01:18]}  Ra7 {[%clk 0:01:09]} 16. Qb3 {[%clk 0:01:17]}  Bd7 {[%clk 0:00:57]} 17. Rfc1 {[%clk 0:01:15]}  Qb8 {[%clk 0:00:51]} 18. e4 {[%clk 0:01:10]}  Ne7 {[%clk 0:00:49]} 19. Bf4 {[%clk 0:01:04]}  Rc8 {[%clk 0:00:23]} 20. h4 {[%clk 0:00:50]}  Kh8 {[%clk 0:00:19]} 21. h5 {[%clk 0:00:50]}  h6 {[%clk 0:00:18]} 22. Nh4 {[%clk 0:00:46]}  Qb6 {[%clk 0:00:17]} 23. Qe3 {[%clk 0:00:45]}  Ng8 {[%clk 0:00:15]} 24. Ng6+ {[%clk 0:00:45]}  Kh7 {[%clk 0:00:15]} 25. e5 {[%clk 0:00:44]}  f5 {[%clk 0:00:15]} 26. g4 {[%clk 0:00:37]}  Nd5 {[%clk 0:00:04]} 27. Qg3 {[%clk 0:00:29]}  Nde7 {[%clk 0:00:01]} 28. R1c2 {[%clk 0:00:24]} 1-0


[Site "https://www.chess.com"]

[Event "Titled Tuesday Blitz January 18 2022"]
[White "Kovalev, Egor"]
[Black "Kepeshchuk, Mykhaylo"]
[WhiteFideId "24124117"]
[BlackFideId "14113139"]
[WhiteElo "2243"]
[BlackElo "2279"]
[Result "0-1"]
[Round "06"]
[TimeControl "180+1"]
[Date "2022.01.18"]
[WhiteClock "0:00:09"]
[BlackClock "0:00:42"]

1. e4 {[%clk 0:00:26]}  c5 {[%clk 0:02:57]} 2. Nf3 {[%clk 0:00:26]}  d6 {[%clk 0:02:58]} 3. d4 {[%clk 0:00:26]}  cxd4 {[%clk 0:02:58]} 4. Nxd4 {[%clk 0:00:27]}  Nf6 {[%clk 0:02:59]} 5. Nc3 {[%clk 0:00:28]}  g6 {[%clk 0:03:00]} 6. f3 {[%clk 0:00:29]}  Bg7 {[%clk 0:03:00]} 7. Be3 {[%clk 0:00:30]}  O-O {[%clk 0:03:01]} 8. Bc4 {[%clk 0:00:30]}  Nc6 {[%clk 0:03:02]} 9. Bb3 {[%clk 0:00:31]}  Nxd4 {[%clk 0:03:01]} 10. Qxd4 {[%clk 0:00:31]}  Be6 {[%clk 0:03:02]} 11. Qd2 {[%clk 0:00:29]}  Qa5 {[%clk 0:03:01]} 12. O-O-O {[%clk 0:00:29]}  Rac8 {[%clk 0:02:54]} 13. Kb1 {[%clk 0:00:30]}  Rc7 {[%clk 0:02:51]} 14. Nd5 {[%clk 0:00:29]}  Qxd2 {[%clk 0:02:49]} 15. Nxf6+ {[%clk 0:00:26]}  Bxf6 {[%clk 0:02:50]} 16. Rxd2 {[%clk 0:00:27]}  a6 {[%clk 0:02:47]} 17. Bxe6 {[%clk 0:00:24]}  fxe6 {[%clk 0:02:48]} 18. Bd4 {[%clk 0:00:24]}  b5 {[%clk 0:02:43]} 19. Bxf6 {[%clk 0:00:23]}  Rxf6 {[%clk 0:02:43]} 20. e5 {[%clk 0:00:23]}  dxe5 {[%clk 0:02:41]} 21. Re1 {[%clk 0:00:23]}  Rf5 {[%clk 0:02:39]} 22. Rd8+ {[%clk 0:00:23]}  Kf7 {[%clk 0:02:38]} 23. Ra8 {[%clk 0:00:20]}  Rc6 {[%clk 0:02:37]} 24. c3 {[%clk 0:00:20]}  Rd6 {[%clk 0:02:37]} 25. Kc2 {[%clk 0:00:20]}  g5 {[%clk 0:02:37]} 26. h3 {[%clk 0:00:20]}  h5 {[%clk 0:02:37]} 27. Re4 {[%clk 0:00:20]}  Kf6 {[%clk 0:02:33]} 28. Rf8+ {[%clk 0:00:19]}  Kg6 {[%clk 0:02:32]} 29. Rg8+ {[%clk 0:00:19]}  Kf7 {[%clk 0:02:28]} 30. Rh8 {[%clk 0:00:19]}  Kg6 {[%clk 0:02:28]} 31. b4 {[%clk 0:00:15]}  Rd5 {[%clk 0:02:21]} 32. Re8 {[%clk 0:00:13]}  Kf7 {[%clk 0:02:21]} 33. Rc8 {[%clk 0:00:13]}  Rf4 {[%clk 0:02:19]} 34. Re2 {[%clk 0:00:07]}  g4 {[%clk 0:02:12]} 35. hxg4 {[%clk 0:00:07]}  hxg4 {[%clk 0:02:13]} 36. fxg4 {[%clk 0:00:07]}  Rxg4 {[%clk 0:02:14]} 37. Rc6 {[%clk 0:00:08]}  Rd6 {[%clk 0:02:13]} 38. Rc5 {[%clk 0:00:08]}  Kf6 {[%clk 0:02:07]} 39. Rcxe5 {[%clk 0:00:07]}  Rxg2 {[%clk 0:02:04]} 40. Rxg2 {[%clk 0:00:06]}  Kxe5 {[%clk 0:02:03]} 41. Rg8 {[%clk 0:00:06]}  Kf6 {[%clk 0:02:00]} 42. a4 {[%clk 0:00:05]}  e5 {[%clk 0:01:44]} 43. a5 {[%clk 0:00:05]}  e4 {[%clk 0:01:42]} 44. c4 {[%clk 0:00:05]}  bxc4 {[%clk 0:01:40]} 45. Kc3 {[%clk 0:00:06]}  e3 {[%clk 0:01:36]} 46. Rg3 {[%clk 0:00:04]}  e2 {[%clk 0:01:28]} 47. Rf3+ {[%clk 0:00:03]}  Kg5 {[%clk 0:00:56]} 48. Re3 {[%clk 0:00:04]}  Rd3+ {[%clk 0:00:55]} 49. Rxd3 {[%clk 0:00:05]}  cxd3 {[%clk 0:00:55]} 50. Kd2 {[%clk 0:00:06]}  Kf4 {[%clk 0:00:50]} 51. b5 {[%clk 0:00:06]}  Kf3 {[%clk 0:00:42]} 52. bxa6 {[%clk 0:00:07]}  Kf2 {[%clk 0:00:42]} 53. a7 {[%clk 0:00:08]}  e1=Q+ {[%clk 0:00:42]} 54. Kxd3 {[%clk 0:00:09]}  Qe3+ {[%clk 0:00:42]} 55. Kc4 {[%clk 0:00:08]}  Qxa7 {[%clk 0:00:43]} 56. Kd5 {[%clk 0:00:09]}  Qxa5+ {[%clk 0:00:42]} 0-1


[Site "https://www.chess.com"]

[Event "Titled Tuesday Blitz January 18 2022"]
[White "Levitskiy, Andrey"]
[Black "Tregubov, Pavel V."]
[WhiteFideId "14132885"]
[BlackFideId "4115341"]
[WhiteElo "2301"]
[BlackElo "2341"]
[Result "0-1"]
[Round "06"]
[TimeControl "180+1"]
[Date "2022.01.18"]
[WhiteClock "0:00:02"]
[BlackClock "0:00:21"]

1. e4 {[%clk 0:03:00]}  e6 {[%clk 0:02:59]} 2. d4 {[%clk 0:02:59]}  d5 {[%clk 0:03:00]} 3. Bd3 {[%clk 0:02:59]}  dxe4 {[%clk 0:02:59]} 4. Bxe4 {[%clk 0:03:00]}  Nf6 {[%clk 0:02:59]} 5. Bf3 {[%clk 0:03:00]}  Nbd7 {[%clk 0:02:55]} 6. Ne2 {[%clk 0:03:00]}  Bd6 {[%clk 0:02:55]} 7. Na3 {[%clk 0:02:56]}  e5 {[%clk 0:02:53]} 8. Bg5 {[%clk 0:02:49]}  h6 {[%clk 0:02:51]} 9. Bxf6 {[%clk 0:02:43]}  Qxf6 {[%clk 0:02:42]} 10. Nc4 {[%clk 0:02:39]}  O-O {[%clk 0:02:42]} 11. Nxd6 {[%clk 0:02:37]}  cxd6 {[%clk 0:02:42]} 12. O-O {[%clk 0:02:35]}  Re8 {[%clk 0:02:38]} 13. dxe5 {[%clk 0:02:22]}  Nxe5 {[%clk 0:02:26]} 14. Bd5 {[%clk 0:02:21]}  Bg4 {[%clk 0:02:17]} 15. f3 {[%clk 0:01:54]}  Be6 {[%clk 0:02:17]} 16. Nc3 {[%clk 0:01:53]}  Nc4 {[%clk 0:02:13]} 17. Bxc4 {[%clk 0:01:43]}  Bxc4 {[%clk 0:02:13]} 18. Re1 {[%clk 0:01:43]}  d5 {[%clk 0:02:10]} 19. Qd2 {[%clk 0:01:39]}  Qb6+ {[%clk 0:02:05]} 20. Kh1 {[%clk 0:01:28]}  Qxb2 {[%clk 0:02:00]} 21. Nxd5 {[%clk 0:01:27]}  Bxd5 {[%clk 0:01:40]} 22. Qxd5 {[%clk 0:01:26]}  Rad8 {[%clk 0:01:33]} 23. Qa5 {[%clk 0:01:02]}  Qxc2 {[%clk 0:01:18]} 24. Qxa7 {[%clk 0:00:57]}  Rxe1+ {[%clk 0:01:14]} 25. Rxe1 {[%clk 0:00:56]}  Rd1 {[%clk 0:01:11]} 26. Rxd1 {[%clk 0:00:32]}  Qxd1+ {[%clk 0:01:09]} 27. Qg1 {[%clk 0:00:32]}  Qc2 {[%clk 0:00:57]} 28. Qa1 {[%clk 0:00:32]}  b5 {[%clk 0:00:55]} 29. a3 {[%clk 0:00:31]}  Qb3 {[%clk 0:00:53]} 30. h3 {[%clk 0:00:25]}  f6 {[%clk 0:00:50]} 31. Qc1 {[%clk 0:00:15]}  Kf7 {[%clk 0:00:50]} 32. Qc7+ {[%clk 0:00:14]}  Kg6 {[%clk 0:00:50]} 33. Qc5 {[%clk 0:00:13]}  Qc4 {[%clk 0:00:47]} 34. Qe3 {[%clk 0:00:12]}  Kf5 {[%clk 0:00:45]} 35. Qe1 {[%clk 0:00:09]}  Qd3 {[%clk 0:00:42]} 36. Qc1 {[%clk 0:00:09]}  Ke5 {[%clk 0:00:39]} 37. Qc7+ {[%clk 0:00:08]}  Kd5 {[%clk 0:00:34]} 38. Qxg7 {[%clk 0:00:07]}  Qxa3 {[%clk 0:00:33]} 39. Qxf6 {[%clk 0:00:07]}  Qc1+ {[%clk 0:00:30]} 40. Kh2 {[%clk 0:00:06]}  Qc7+ {[%clk 0:00:30]} 41. f4 {[%clk 0:00:06]}  b4 {[%clk 0:00:29]} 42. Qf5+ {[%clk 0:00:06]}  Kd4 {[%clk 0:00:27]} 43. Qf6+ {[%clk 0:00:06]}  Kc4 {[%clk 0:00:26]} 44. Qe6+ {[%clk 0:00:06]}  Kc3 {[%clk 0:00:26]} 45. Qe3+ {[%clk 0:00:06]}  Kb2 {[%clk 0:00:26]} 46. Qd2+ {[%clk 0:00:06]}  Ka3 {[%clk 0:00:26]} 47. Qd3+ {[%clk 0:00:06]}  b3 {[%clk 0:00:26]} 48. Qa6+ {[%clk 0:00:06]}  Kb2 {[%clk 0:00:25]} 49. Qe2+ {[%clk 0:00:06]}  Qc2 {[%clk 0:00:21]} 50. Qe5+ {[%clk 0:00:06]}  Qc3 {[%clk 0:00:21]} 51. Qe2+ {[%clk 0:00:05]}  Kc1 {[%clk 0:00:21]} 52. Qf1+ {[%clk 0:00:05]}  Kc2 {[%clk 0:00:21]} 53. Qe2+ {[%clk 0:00:05]}  Qd2 {[%clk 0:00:21]} 54. Qc4+ {[%clk 0:00:06]}  Kb2 {[%clk 0:00:21]} 55. f5 {[%clk 0:00:03]}  Qd6+ {[%clk 0:00:21]} 56. g3 {[%clk 0:00:02]}  Ka3 {[%clk 0:00:21]} 0-1


[Site "https://www.chess.com"]